Cogmind - Beta 15 *** ADVENTURER MODE // 2025.07.03 @ 21:08:49 Player: UnifiBg Result: Self-destructed Performance ------------- Evolutions (7) 3500 Regions Visited (14) 2800 Robots Destroyed (148) 740 Value Destroyed (6337) 6337 Prototype IDs (40) 800 Alien Tech Used (0) 0 Bonus (408) 408 TOTAL SCORE: 14585 Bonus ------- Follower Combat Kills 108 Aligned with FarCom 300 Cogmind --------- Core Integrity 694/1300 Matter 300/300 Energy 1030/1030 System Corruption 21% Temperature Cool (0) Movement Core (1350) Ox26 Location -3/Research Parts ------- > --- POWER (2) -------- Particle Reactor Light Quantum Reactor > --- PROPULSION (6) --- Enhanced Biometal Leg > --- UTILITY (8) ------ Large Storage Unit Experimental Energy Well Improved Salvage Targeting Computer Advanced Target Analyzer Advanced Target Analyzer > --- WEAPON (5) ------- Enhanced Force Lance Enhanced Force Lance Enhanced Force Lance > --- INVENTORY (15) --- Micro Antimatter Reactor Micro Antimatter Reactor Advanced Heat Sink Advanced Energy Well Improved Matter Compressor (300) Advanced Signal Interpreter Improved Remote Datajack Peak State ------------ > --- POWER ------------ Particle Reactor Light Quantum Reactor > --- PROPULSION ------- Armored Medium Treads Armored Medium Treads Wheel Wheel Centrium Wheel Centrium Wheel > --- UTILITY ---------- Experimental Cooling System Large Storage Unit Experimental Energy Well Advanced Target Analyzer Transmission Jammer Improved Shock Absorption System EM Shield Advanced Point Defense System > --- WEAPON ----------- Gamma Rifle Enhanced Force Lance Enhanced Force Lance Enhanced Force Lance Enhanced Force Lance > --- INVENTORY -------- Particle Reactor Particle Reactor Micro Antimatter Reactor Micro Antimatter Reactor Enhanced Biometal Leg Advanced Heat Sink Advanced Cooling System Advanced Energy Well Improved Matter Compressor Advanced Signal Interpreter Improved Salvage Targeting Computer Advanced Target Analyzer Advanced Recalibrator HERF Cannon Improved Remote Datajack [Rating: 143] Favorites ----------- Power Fission Core Engine Heavy Ion Engine Power Core Fission Core Reactor Light Quantum Reactor Propulsion Wheel Treads Armored Medium Treads Leg Carbon-fiber Leg Wheel Wheel Utility Large Storage Unit Device Improved Weapon Cycler Storage Large Storage Unit Processor Advanced Visual Processing Unit Protection Hardened Medium Armor Plating Weapon Enhanced Autogun Energy Gun Tesla Rifle Energy Cannon Advanced Plasma Cannon Ballistic Gun Enhanced Autogun Ballistic Cannon Magnetic Acceleration Cannon Launcher Improved Grenade Launcher Special Weapon Mining Laser Impact Weapon Flail Slashing Weapon Axe Piercing Weapon Enhanced Force Lance Build | -11 -10 -10 -10 -9 -8 -8 -8 -8 -6 -6 -6 -5 -4 -3 ------- Run | Yrd Mat Min Exi Min Mat Sto Rec Scr Fac Was Fac Fac Fac Res Slots Evolved 14 | . . . . . 4 . . . 4 . . 2 2 2 Power 1 | . . . . . . . . . 1 . . . . . Propulsion 4 | . . . . . 1 . . . 1 . . 1 . 1 Utility 6 | . . . . . 2 . . . 1 . . 1 1 1 Weapon 3 | . . . . . 1 . . . 1 . . . 1 . Parts Attached 154 | 7 10 4 . 2 14 9 3 . 12 3 2 30 20 38 Power 22 | . 2 . . 1 2 1 . . 3 . . 5 4 4 Engine 9 | . 2 . . 1 2 1 . . 1 . . 1 1 . Core 6 | . . . . . . . . . 2 . . 4 . . Reactor 7 | . . . . . . . . . . . . . 3 4 Propulsion 38 | 3 2 2 . . 2 1 . . 1 . . 9 8 10 Treads 3 | . . . . . . . . . . . . . 1 2 Leg 13 | . . . . . . . . . . . . 7 3 3 Wheel 22 | 3 2 2 . . 2 1 . . 1 . . 2 4 5 Hover . | . . . . . . . . . . . . . . . Flight . | . . . . . . . . . . . . . . . Utility 48 | 2 2 1 . . 4 2 3 . 2 1 . 12 5 14 Device 26 | 1 1 1 . . 1 2 1 . . . . 11 2 6 Storage 7 | 1 1 . . . . . . . . 1 . . 1 3 Processor 6 | . . . . . 1 . . . 1 . . . 1 3 Hackware . | . . . . . . . . . . . . . . . Protection 9 | . . . . . 2 . 2 . 1 . . 1 1 2 Artifact . | . . . . . . . . . . . . . . . Weapon 46 | 2 4 1 . 1 6 5 . . 6 2 2 4 3 10 Energy Gun 9 | . 1 . . . . . . . 1 . . 1 2 4 Energy Cannon 4 | . . . . . . . . . . 1 . 1 . 2 Ballistic Gun 21 | 2 2 1 . 1 4 4 . . 3 . 1 2 1 . Ballistic Cannon 2 | . . . . . . . . . 2 . . . . . Launcher 2 | . . . . . . 1 . . . 1 . . . . Special Weapon 1 | . 1 . . . . . . . . . . . . . Impact Weapon 2 | . . . . . 2 . . . . . . . . . Slashing Weapon 1 | . . . . . . . . . . . 1 . . . Piercing Weapon 4 | . . . . . . . . . . . . . . 4 Special Melee Weapon . | . . . . . . . . . . . . . . . Unidentified Prototypes 13 | . . . . . 1 3 . . 1 . . 3 1 4 Parts Lost 57 | . . 3 . . . 1 . . . 3 . 12 11 27 Power 9 | . . 1 . . . . . . . 1 . 2 2 3 Propulsion 21 | . . 1 . . . . . . . . . 5 5 10 Utility 17 | . . 1 . . . 1 . . . 1 . 2 2 10 Weapon 10 | . . . . . . . . . . 1 . 3 2 4 Highest Loss Streak 15 | . . 3 . . . 1 . . . 2 . 4 10 15 To Critical Strikes 1 | . . . . . . . . . . . . . . 1 Average Backups 13 | 2 11 14 14 15 14 13 14 14 12 12 8 12 13 14 Power . | . . . . . . . . . . . . . . 2 Propulsion 1 | . 2 2 2 3 1 1 1 1 1 2 2 . . 1 Utility 7 | . 3 4 4 4 6 6 7 7 7 7 6 10 10 8 Weapon 4 | . 5 8 8 8 6 6 6 6 4 3 . . . 1 Tool/Special . | . . . . . . . . . . . . . . . Unused Backups 44 | . 2 4 1 1 5 5 . . 4 . . 3 4 15 Power 6 | . . . . . . . . . . . . . . 6 Propulsion 5 | . 1 2 . . 1 . . . . . . . 1 . Utility 22 | . 1 2 . . 1 3 . . 3 . . 3 3 6 Weapon 10 | . . . 1 1 3 2 . . 1 . . . . 2 Tool/Special 1 | . . . . . . . . . . . . . . 1 Average Slot Usage (%) 90 | . 98 87 85 96 95 89 90 90 84 68 71 90 90 93 Engine 4 | . 12 2 . 10 9 9 9 9 2 . . 1 . . Core 2 | . . . . . . . . . 9 8 6 7 5 . Reactor 1 | . . . . . . . . . . . . . 4 8 Leg 3 | . . . . . . . . . . . . 11 12 8 Wheel 17 | . 28 27 28 28 25 18 18 18 12 13 13 10 8 12 Device 8 | . 14 14 14 14 10 3 . . . . . 9 11 16 Storage 8 | . 14 14 14 14 9 9 9 9 6 6 6 5 5 8 Processor 6 | . . . . . 5 9 9 9 12 13 13 11 7 4 Protection 7 | . . . . . 9 15 18 18 13 10 13 4 5 2 Energy Cannon 1 | . . . . . . . . . . 3 . 2 5 2 Ballistic Gun 15 | . 23 28 28 28 18 19 25 27 16 8 6 9 4 1 Impact Weapon 3 | . . . . . 8 7 1 . 6 . 5 5 5 2 Slashing Weapon 1 | . . . . . . . . . . . 5 4 5 2 Piercing Weapon 1 | . . . . . . . . . . . . . . 6 Peak Build Rating 143 | 6 11 12 8 9 34 38 38 38 61 66 52 72 100 143 Average Rating 53 | 4 8 8 7 8 24 33 37 38 58 50 47 65 85 119 On Entrance 34 | . 6 10 8 8 9 33 38 38 38 61 39 52 71 99 Naked Turns . | . . . . . . . . . . . . . . . Heaviest Build 111 | 10 33 30 23 26 49 50 50 48 71 77 56 71 96 111 Greatest Support 85 | 26 20 20 20 20 38 50 38 38 56 56 56 66 85 52 Greatest Overweight (x) 6 | . 1 1 1 1 1 1 1 1 1 1 . 4 6 4 Average Overweight (x) 1 | . . 1 1 1 . . 1 1 . . . 1 3 2 Largest Inventory Capacity 15 | 8 15 15 15 15 15 15 15 15 15 15 15 15 15 15 Average Capacity 14 | 7 14 15 15 15 15 15 15 15 15 15 15 15 15 15 Most Carried 15 | 7 15 15 15 15 15 15 15 15 15 15 12 15 15 15 Average Carried 14 | 2 11 14 14 14 14 14 15 15 14 14 10 14 13 14 Final Capacity 15 | 8 15 15 15 15 15 15 15 15 15 15 15 15 15 15 Final Carried 15 | 7 15 15 15 15 15 15 15 15 15 13 11 15 15 7 Class Distribution -------------------- 32% | Scavenger-Mutant 27% | Mutant 15% | Tank 10% | Commander-Tank 5% | Scavenger-Gunner Dominant Class ---------------- Mutant | -10/Materials Scavenger-Mutant | -10/Mines Scavenger-Mutant | -10/Exiles Scavenger-Mutant | -9/Mines Scavenger-Mutant | -8/Materials Mutant | -8/Storage Commander-Tank | -8/Recycling Commander-Tank | -8/Scraptown Tank | -6/Factory Mutant | -6/Waste Mutant | -6/Factory Mutant | -5/Factory Scavenger-Tank | -4/Factory Scavenger-Mutant | -3/Research Resources | -11 -10 -10 -10 -9 -8 -8 -8 -8 -6 -6 -6 -5 -4 -3 ----------- Run | Yrd Mat Min Exi Min Mat Sto Rec Scr Fac Was Fac Fac Fac Res Matter Collected 4349 | 297 301 113 . 22 214 708 238 9 234 237 . 789 262 925 Remotely . | . . . . . . . . . . . . . . . Salvage Created 8109 | 110 314 100 . 12 448 1166 604 . 258 237 . 1474 744 2642 Parts 403 | 9 23 2 . 3 27 61 17 . 17 . . 55 33 156 Haulers Intercepted 10 | . 1 . . . 4 3 . . . . . . . 2 Recyclers Shooed 2 | . 1 . . . . 1 . . . . . . . . Parts Field Recycled . | . . . . . . . . . . . . . . . Retrieved Matter . | . . . . . . . . . . . . . . . Parts Self-Destructed . | . . . . . . . . . . . . . . . Prevented . | . . . . . . . . . . . . . . . Kills | -11 -10 -10 -10 -9 -8 -8 -8 -8 -6 -6 -6 -5 -4 -3 ------- Run | Yrd Mat Min Exi Min Mat Sto Rec Scr Fac Was Fac Fac Fac Res Combat Hostiles Destroyed 107 | . 7 1 . 1 3 15 4 . 4 1 . 25 14 32 Melee 39 | . . . . . . . . . . . . 6 4 29 Guns 47 | . 7 1 . 1 3 15 4 . 3 . . 12 1 . Cannons 11 | . . . . . . . . . 1 1 . 2 6 1 Classes Destroyed 15 | 2 3 1 . . 2 3 . . 2 1 . 1 . . Worker 5 | . . . . . . 1 . . 1 . . 3 . . Builder 3 | . . . . . . 1 . . . . . 1 . 1 Tunneler 2 | 2 . . . . . . . . . . . . . . Hauler 10 | . 1 . . . 4 3 . . . . . . . 2 Recycler 14 | 1 . 1 . . . 3 5 . 1 . . 1 . 2 Operator 1 | . . . . . . . . . . . . 1 . . Watcher 5 | . . . . . 3 1 . . . . . . 1 . Swarmer 17 | . 2 . . 1 . 3 . . . . . 5 5 1 Grunt 34 | . 5 . . . . 5 1 . . . . 12 7 4 Protector 1 | . . . . . . . . . 1 . . . . . Sentry 17 | . . . . . 3 6 3 . 1 . . 2 . 2 Demolisher 1 | . . 1 . . . . . . . . . . . . Hunter 7 | . . . . . . 1 . . . . . 2 . 4 Programmer 30 | . . . . . . . . . 3 . . 4 2 21 Compactor 1 | . . . . . . . . . . 1 . . . . Best Kill Streak 11 | 2 3 1 . 1 2 6 5 . 1 1 . 11 8 10 Combat Bots Only 10 | . 3 1 . 1 1 4 2 . 1 1 . 9 8 10 Max Kills in Single Turn 3 | 1 1 1 . 1 1 2 1 . 3 1 . 2 1 3 Gunslinging 1 | . . . . . . 1 . . . . . 1 . . Exploded . | . . . . . . . . . . . . . . . Melee 3 | . . . . . . . . . . . . 1 1 3 Uniques/NPCs Destroyed . | . . . . . . . . . . . . . . . Combat | -11 -10 -10 -10 -9 -8 -8 -8 -8 -6 -6 -6 -5 -4 -3 -------- Run | Yrd Mat Min Exi Min Mat Sto Rec Scr Fac Was Fac Fac Fac Res Hostile Shots Fired 1095 | . 33 5 . . 6 54 10 . 25 5 . 163 231 563 Missed 305 | . 10 . . . 4 13 2 . 5 1 . 36 61 173 Hits 790 | . 23 5 . . 2 41 8 . 20 4 . 127 170 390 Melee 4 | . . . . . . . . . . 4 . . . . Projectile 786 | . 23 5 . . 2 41 8 . 20 . . 127 170 390 AOE 6 | . . 5 . . . 1 . . . . . . . . Critical Strikes 54 | . . . . . . 3 . . 1 2 . 6 9 33 Part Disruptions 2 | . . . . . . . . . . . . . . 2 Damage Taken 11090 | . 227 161 . . 20 485 89 . 426 234 . 1779 2190 5479 Core 1163 | . 24 . . . . 53 . . 83 40 . 177 180 606 Absorbed by Shields 321 | . . . . . 3 . . . 31 . . 59 217 11 Ignored by Resistances 4061 | . 70 44 . . 7 140 26 . 126 63 . 505 888 2192 Core Remaining (%) 88 | 100 . . . 90 . . . 90 . . 85 82 84 . Volleys Fired 245 | 7 42 8 . 1 5 54 12 . 19 21 . 51 20 5 Largest 3 | 2 2 2 . 2 3 3 3 . 3 3 . 3 3 3 Hottest 201 | 40 100 40 . 40 73 75 75 . 104 120 . 158 201 201 Shots Fired 507 | 9 73 16 . 2 11 129 37 . 41 28 1 113 38 9 Gun 422 | 9 62 16 . 2 11 129 37 . 29 8 1 93 18 7 Cannon 69 | . . . . . . . . . 12 15 . 20 20 2 Launcher 5 | . . . . . . . . . . 5 . . . . Special 11 | . 11 . . . . . . . . . . . . . Kinetic 422 | 9 59 16 . 2 11 129 37 . 41 9 1 93 14 1 Thermal 72 | . 14 . . . . . . . . 14 . 20 23 1 Explosive 5 | . . . . . . . . . . 5 . . . . Electromagnetic 8 | . . . . . . . . . . . . . 1 7 Robot Hit Streak 29 | 7 20 5 . 6 9 23 29 . 12 18 . 29 9 15 Robot Miss Streak 2 | . 2 1 . . 1 2 1 . 1 2 . 2 1 . Penetration Max 2 | . . . . . . . . . . . . 2 1 . Secondary Targets 4 | . 1 . . . . 1 . . . . . 2 . . Max Gunslinging Chain 1 | . 1 . . . . 1 . . . . . 1 . . Shots Hit Robots 547 | 7 53 12 . 1 14 99 33 . 21 24 . 136 49 98 Core Hits 219 | 4 19 6 . 1 9 41 12 . 13 5 . 45 22 42 Critical Kills 8 | . . . . . 1 1 . . . . . 4 . 2 Critical Parts Destroyed 19 | . . . . . 1 . 1 . . . . 9 5 3 Critical Strikes 46 | . . . . . 2 1 1 . . . . 13 5 24 Destroy 5 | . . . . . . 1 . . . . . 4 . . Corrupt 1 | . . . . . . . . . . . . . . 1 Smash 22 | . . . . . 2 . 1 . . . . 9 5 5 Sever 1 | . . . . . . . . . . . . . . 1 Impale 17 | . . . . . . . . . . . . . . 17 Melee Attacks 457 | . . . . . 30 45 8 . 40 . . 88 38 208 Impact 288 | . . . . . 30 45 8 . 40 . . 72 32 61 Slashing 45 | . . . . . . . . . . . . 16 6 23 Piercing 124 | . . . . . . . . . . . . . . 124 Sneak Attacks 18 | . . . . . 3 . 3 . . . . 5 . 7 Combat Hostiles 5 | . . . . . . . 1 . . . . 3 . 1 Follow-up Attacks 40 | . . . . . . . . . . . . 10 3 27 Damage Inflicted 16126 | 89 603 100 . 11 554 1786 758 . 750 1429 . 4020 1638 4388 Guns 5784 | 89 603 100 . 11 155 1737 488 . 434 114 . 1719 282 52 Cannons 1802 | . . . . . . . . . 78 539 . 522 582 81 Explosions 1014 | . . . . . . . . . 238 776 . . . . Melee 7526 | . . . . . 399 49 270 . . . . 1779 774 4255 Ramming . | . . . . . . . . . . . . . . . Kinetic 5702 | 89 557 100 . 11 155 1737 488 . 512 160 . 1719 174 . Thermal 1761 | . 46 . . . . . . . . 493 . 522 650 50 Explosive 1014 | . . . . . . . . . 238 776 . . . . Electromagnetic 123 | . . . . . . . . . . . . . 40 83 Impact 3376 | . . . . . 399 49 270 . . . . 1427 706 525 Slashing 609 | . . . . . . . . . . . . 352 68 189 Piercing 3541 | . . . . . . . . . . . . . . 3541 Highest Corruption 23 | . . . . . . 2 2 . 1 23 23 1 3 21 Average Corruption 5 | . . . . . . 1 2 . 1 9 23 1 2 10 Corruption Purged 2 | . . . . . . . . . . . . 2 . . Corruption Blocked . | . . . . . . . . . . . . . . . Effects 108 | . . . . . . 18 10 . 2 9 3 . 5 61 Message Errors 22 | . . . . . . 6 1 . . 3 . . . 12 Matter Fused 27 | . . . . . . 4 1 . 1 2 . . 1 18 Heat Flow Errors 8 | . . . . . . . . . . 1 . . 2 5 Energy Discharges 15 | . . . . . . 1 2 . 1 1 . . . 10 Parts Rejected 3 | . . . . . . . . . . 1 . . . 2 Data Loss (minor) 12 | . . . . . . 1 4 . . . . . 1 6 Data Loss (major) 7 | . . . . . . 1 1 . . . 1 . . 4 Misfires 7 | . . . . . . 2 1 . . . 1 . 1 2 Alerts 3 | . . . . . . 2 . . . 1 . . . . Misdirections 3 | . . . . . . . . . . . 1 . . 2 Weapon Failures 1 | . . . . . . 1 . . . . . . . . Overload Shots . | . . . . . . . . . . . . . . . Overflow Damage 1272 | . . . . . 173 29 47 . 7 . . 391 241 384 Projectiles 40 | . . . . . . . . . . . . 10 30 . Explosions 7 | . . . . . . . . . 7 . . . . . Melee 1225 | . . . . . 173 29 47 . . . . 381 211 384 Knockbacks 16 | . . . . . . . 2 . . . . 5 6 3 Impact 14 | . . . . . . . 2 . . . . 5 5 2 Kinetic . | . . . . . . . . . . . . . . . Secondary 2 | . . . . . . . . . . . . . 1 1 Self-Inflicted Damage 253 | . . . . . . . . . 151 102 . . . . Shots 6 | . . . . . . . . . 2 4 . . . . Rammed . | . . . . . . . . . . . . . . . Targets Rammed . | . . . . . . . . . . . . . . . Kicked . | . . . . . . . . . . . . . . . Crushed . | . . . . . . . . . . . . . . . Highest Temperature 414 | . 80 2 . . 36 166 293 . 182 306 . 414 245 221 Average Temperature 93 | . 18 1 . . 14 42 116 . 65 169 . 158 76 73 Received Heat Transfer 2080 | . 156 . . . . 216 72 . 12 . . 672 531 421 Effects 9 | . . . . . . . . . . 3 . 6 . . Shutdowns 3 | . . . . . . . . . . . . 3 . . Energy Bleed 3 | . . . . . . . . . . 3 . . . . Interference 1 | . . . . . . . . . . . . 1 . . Damage (minor) 2 | . . . . . . . . . . . . 2 . . Siege Activations . | . . . . . . . . . . . . . . . Martial Activations . | . . . . . . . . . . . . . . . Shielding Activations . | . . . . . . . . . . . . . . . Robots Disrupted . | . . . . . . . . . . . . . . . Combat Hostiles . | . . . . . . . . . . . . . . . Robots Corrupted 17 | . . . . . 3 . . . . . . 7 3 4 Combat Hostiles 10 | . . . . . . . . . . . . 5 3 2 Parts Fried 22 | . . . . . 3 1 . . . . . 8 4 6 Impact Corruptions 40 | . . . . . 6 1 2 . . . . 13 10 8 Robots Melted . | . . . . . . . . . . . . . . . Combat Hostiles . | . . . . . . . . . . . . . . . Parts Melted 4 | . . . . . . . . . . . . 1 1 2 Heat Transferred 3029 | . 111 . . . . . . . . 1120 . 800 961 37 Parts Sabotaged . | . . . . . . . . . . . . . . . Parts Stolen . | . . . . . . . . . . . . . . . Parts Stripped . | . . . . . . . . . . . . . . . Power Chain Reactions . | . . . . . . . . . . . . . . . Alert | -11 -10 -10 -10 -9 -8 -8 -8 -8 -6 -6 -6 -5 -4 -3 ------- Run | Yrd Mat Min Exi Min Mat Sto Rec Scr Fac Was Fac Fac Fac Res Maximum Alert Level 1 | . . . . . . . . . . . . . 1 . Low Security (%) 97 | 100 100 100 . 100 100 100 100 . 100 100 100 100 56 100 Level 1 2 | . . . . . . . . . . . . . 43 . Level 2 . | . . . . . . . . . . . . . . . Level 3 . | . . . . . . . . . . . . . . . Level 4 . | . . . . . . . . . . . . . . . Level 5 . | . . . . . . . . . . . . . . . High Security . | . . . . . . . . . . . . . . . Max Security . | . . . . . . . . . . . . . . . Peak Influence 286 | 10 75 30 . 183 64 116 97 . 89 16 . 183 286 125 Initial 70 | . . . . . 13 . 20 . . 8 . . . 70 Average 30 | 1 13 2 . 91 9 21 30 . 7 1 . 54 140 26 Influence Increases 4161 | 15 256 65 . 193 223 548 339 . 264 24 . 792 465 977 Destroy 0b10 Robot/C 2280 | . 140 20 . 140 80 300 100 . 80 . . 500 280 640 Destroy 0b10 Robot/NC 195 | 15 5 5 . . 40 45 25 . . . . 30 5 25 Destroy Leader 520 | . 32 10 . 20 54 98 . . 40 . . 80 52 134 Allied During Kill 24 | . . . . 18 4 . 2 . . . . . . . Successful Hack 168 | . 24 . . . 20 15 13 . 22 . . 53 . 21 Select Force Hacks 240 | . . . . . . . 180 . 30 . . 30 . . Disable Machine 54 | . . . . . 9 9 . . 27 . . . 9 . Destroy Structure 335 | . 10 . . . 16 36 4 . 65 24 . 54 14 112 Partial Spotted 30 | . . . . . . . . . . . . . . 30 Lose Combat Pursuer 315 | . 45 30 . 15 . 45 15 . . . . 45 105 15 Influence Decreases 4121 | 15 256 65 . 150 266 486 401 . 234 54 . 792 310 1092 Entered New Map 179 | . . . . . 30 . 42 . . 22 . . . 85 Time Decay 3506 | 15 256 55 . 150 235 476 359 . 234 26 . 683 210 807 Lost Part 435 | . . 10 . . . 10 . . . 6 . 109 100 200 Lost Ally 1 | . . . . . 1 . . . . . . . . . Squads Dispatched 28 | . 1 . . . . 2 . . 5 . . 8 3 9 Investigation 7 | . 1 . . . . 1 . . 2 . . 2 . 1 Extermination 14 | . . . . . . . . . 3 . . 3 1 7 Reinforcement 7 | . . . . . . 1 . . . . . 3 2 1 Assault . | . . . . . . . . . . . . . . . Garrison . | . . . . . . . . . . . . . . . Intercept . | . . . . . . . . . . . . . . . Searches Triggered . | . . . . . . . . . . . . . . . Construction Impeded 1 | . . . . . . . . . . . . 1 . . Haulers Reinforced 1 | . . . . . . . . . . . . 1 . . Active Scanning Responses . | . . . . . . . . . . . . . . . Cargo Convoy Interrupts . | . . . . . . . . . . . . . . . Stealth | -11 -10 -10 -10 -9 -8 -8 -8 -8 -6 -6 -6 -5 -4 -3 --------- Run | Yrd Mat Min Exi Min Mat Sto Rec Scr Fac Was Fac Fac Fac Res Distress Signals 11 | . . 1 . . 2 . . . . . . 2 2 4 Communications Jammed 51 | . . . . . . . . . . . . . . 51 Distress Signals 51 | . . . . . . . . . . . . . . 51 Times Spotted 197 | . 24 4 . 4 9 24 4 . 4 6 1 31 29 57 Peak Tracking Total 10 | . 3 2 . 3 2 5 2 . 1 5 1 8 10 8 Tactical Retreats 19 | . 2 1 . 1 . 3 1 . . . . 3 2 6 Traps | -11 -10 -10 -10 -9 -8 -8 -8 -8 -6 -6 -6 -5 -4 -3 ------- Run | Yrd Mat Min Exi Min Mat Sto Rec Scr Fac Was Fac Fac Fac Res Traps Triggered 16 | . 1 . . . 1 4 . . 2 . . 2 1 5 Indirectly . | . . . . . . . . . . . . . . . Trap Hack Attempts . | . . . . . . . . . . . . . . . Triggered . | . . . . . . . . . . . . . . . Disarmed . | . . . . . . . . . . . . . . . Reprogrammed . | . . . . . . . . . . . . . . . Reused . | . . . . . . . . . . . . . . . Traps Extracted . | . . . . . . . . . . . . . . . Installed . | . . . . . . . . . . . . . . . Triggered . | . . . . . . . . . . . . . . . Machines | -11 -10 -10 -10 -9 -8 -8 -8 -8 -6 -6 -6 -5 -4 -3 ---------- Run | Yrd Mat Min Exi Min Mat Sto Rec Scr Fac Was Fac Fac Fac Res Machines Disabled 6 | . . . . . 1 1 . . 3 . . . 1 . Max in Single Turn 3 | . . . . . 1 1 . . 3 . . . 1 . Garrison Access 2 | . . . . . . . . . 1 . . 1 . . Machines Repaired . | . . . . . . . . . . . . . . . Machines Dismantled . | . . . . . . . . . . . . . . . Machines Sabotaged . | . . . . . . . . . . . . . . . Overloaded Fab Kills . | . . . . . . . . . . . . . . . Hacking | -11 -10 -10 -10 -9 -8 -8 -8 -8 -6 -6 -6 -5 -4 -3 --------- Run | Yrd Mat Min Exi Min Mat Sto Rec Scr Fac Was Fac Fac Fac Res Machines Accessed 57 | . 7 . 5 . 4 6 14 2 7 . . 7 3 2 Terminals 33 | . 6 . . . 4 6 6 . 4 . . 5 2 . Fabricators 1 | . . . . . . . . . . . . . 1 . Repair Stations . | . . . . . . . . . . . . . . . Recycling Units 12 | . 1 . . . . . 6 . 2 . . 1 . 2 Scanalyzers . | . . . . . . . . . . . . . . . Garrison Access 2 | . . . . . . . . . 1 . . 1 . . Total Hacks 214 | . 25 . 50 . 18 14 49 19 12 . . 18 5 4 Successful 153 | . 13 . 50 . 11 7 37 19 5 . . 8 2 1 Failed 61 | . 12 . . . 7 7 12 . 7 . . 10 3 3 Catastrophic 9 | . 1 . . . . . 1 . 3 . . 2 1 1 Database Lockouts . | . . . . . . . . . . . . . . . Manual 96 | . 16 . 1 . 10 9 30 . 8 . . 15 3 4 Terminals 102 | . 23 . . . 18 14 19 . 9 . . 15 4 . Fabricators 1 | . . . . . . . . . . . . . 1 . Repair Stations . | . . . . . . . . . . . . . . . Recycling Units 16 | . 2 . . . . . 6 . 2 . . 2 . 4 Scanalyzers . | . . . . . . . . . . . . . . . Garrison Access 2 | . . . . . . . . . 1 . . 1 . . Terminal Hacks 124 | . 10 . 50 . 7 5 29 19 . . . 4 . . Record 93 | . 1 . 49 . . . 24 19 . . . . . . Robot Analysis 10 | . 5 . . . 2 . 2 . . . . 1 . . Prototype ID Bank 2 | . 1 . . . 1 . . . . . . . . . Open Door 2 | . . . . . . 2 . . . . . . . . Branch Access Points 1 | . . . . . . 1 . . . . . . . . Locate Traps 6 | . . . . . 2 2 1 . . . . 1 . . Transport Status 1 | . 1 . . . . . . . . . . . . . Recall Investigation 1 | . . . . . . . . . . . . 1 . . Hauler Manifests 1 | . 1 . . . . . . . . . . . . . Zone Layout 6 | . 1 . . . 2 . 2 . . . . 1 . . Proto ID Catalog 1 | . . . 1 . . . . . . . . . . . Fabricator Hacks 1 | . . . . . . . . . . . . . 1 . Network Status 1 | . . . . . . . . . . . . . 1 . Repair Station Hacks . | . . . . . . . . . . . . . . . Recycling Unit Hacks 1 | . 1 . . . . . . . . . . . . . Retrieve Components 1 | . 1 . . . . . . . . . . . . . Scanalyzer . | . . . . . . . . . . . . . . . Garrison Access Hacks 2 | . . . . . . . . . 1 . . 1 . . Seal Access 2 | . . . . . . . . . 1 . . 1 . . Unauthorized Hacks 24 | . 2 . . . 4 2 8 . 4 . . 3 1 . Terminals 16 | . 2 . . . 4 2 2 . 3 . . 2 1 . Assimilate 3 | . . . . . 2 . . . 1 . . . . . Botnet 13 | . 2 . . . 2 2 2 . 2 . . 2 1 . Fabricators . | . . . . . . . . . . . . . . . Repair Stations . | . . . . . . . . . . . . . . . Recycling Units 8 | . . . . . . . 6 . 1 . . 1 . . Tunnel 8 | . . . . . . . 6 . 1 . . 1 . . Scanalyzers . | . . . . . . . . . . . . . . . Garrison Access . | . . . . . . . . . . . . . . . Data Cores Recovered 1 | . . . . . 1 . . . . . . . . . Used . | . . . . . . . . . . . . . . . Hacking Detections 36 | . 5 . . . 4 5 6 . 5 . . 6 3 2 Full Trace Events 2 | . . . . . . . . . 1 . . . . 1 Feedback Events 1 | . . . . . . . . . 1 . . . . . Corruption 1 | . . . . . . . . . 1 . . . . . Feedback Blocked . | . . . . . . . . . . . . . . . Robot Schematics Acquired . | . . . . . . . . . . . . . . . Robots Built . | . . . . . . . . . . . . . . . Authchips . | . . . . . . . . . . . . . . . Time . | . . . . . . . . . . . . . . . Total Robot Build Rating . | . . . . . . . . . . . . . . . Part Schematics Acquired . | . . . . . . . . . . . . . . . Parts Built . | . . . . . . . . . . . . . . . Authchips . | . . . . . . . . . . . . . . . Time . | . . . . . . . . . . . . . . . Total Part Build Rating . | . . . . . . . . . . . . . . . Parts Repaired . | . . . . . . . . . . . . . . . Time . | . . . . . . . . . . . . . . . Parts Recycled . | . . . . . . . . . . . . . . . Recycled Matter . | . . . . . . . . . . . . . . . Retrieved Matter . | . . . . . . . . . . . . . . . Retrieved Components 3 | . 3 . . . . . . . . . . . . . Parts Scanalyzed . | . . . . . . . . . . . . . . . Part Schematics Acquired . | . . . . . . . . . . . . . . . Parts Damaged . | . . . . . . . . . . . . . . . Bothacking | -11 -10 -10 -10 -9 -8 -8 -8 -8 -6 -6 -6 -5 -4 -3 ------------ Run | Yrd Mat Min Exi Min Mat Sto Rec Scr Fac Was Fac Fac Fac Res Used RIF Installer . | . . . . . . . . . . . . . . . Robots Hacked . | . . . . . . . . . . . . . . . Non-combat . | . . . . . . . . . . . . . . . Combat . | . . . . . . . . . . . . . . . Robot Hacks Applied . | . . . . . . . . . . . . . . . Relay Couplers Released . | . . . . . . . . . . . . . . . Fabnet Peak Effective % . | . . . . . . . . . . . . . . . Robots Rewired 7 | . . . . . . . 7 . . . . . . . Allies Hacked . | . . . . . . . . . . . . . . . Hacks Repelled . | . . . . . . . . . . . . . . . Allies | -11 -10 -10 -10 -9 -8 -8 -8 -8 -6 -6 -6 -5 -4 -3 -------- Run | Yrd Mat Min Exi Min Mat Sto Rec Scr Fac Was Fac Fac Fac Res Total Allies 13 | . . 5 . 1 . . 7 . . . . . . . Largest Group 7 | . . 3 3 4 3 . 7 7 7 . . . . . Highest-Rated Group 95 | . . 45 40 71 40 . 95 95 95 . . . . . Highest-Rated Ally 31 | . . 31 16 31 16 . 27 27 27 . . . . . Total Orders . | . . . . . . . . . . . . . . . Ally Attacks 28 | . . 2 . 14 11 . 1 . . . . . . . Total Damage 350 | . . 40 . 143 159 . 8 . . . . . . . Kills 9 | . . . . 6 2 . 1 . . . . . . . Allies Corrupted . | . . . . . . . . . . . . . . . Allies Melted . | . . . . . . . . . . . . . . . Intel | -11 -10 -10 -10 -9 -8 -8 -8 -8 -6 -6 -6 -5 -4 -3 ------- Run | Yrd Mat Min Exi Min Mat Sto Rec Scr Fac Was Fac Fac Fac Res Active Infowar (turns) 14139 | 24 958 937 487 385 886 1857 879 941 1675 324 63 1883 314 2526 Optics 8375 | . . . . . 543 1857 879 941 1675 324 63 1883 210 . Sensors 188 | . . . . . . 188 . . . . . . . . Terrain 13 | . . 13 . . . . . . . . . . . . Seismic 3943 | 24 958 924 487 385 720 445 . . . . . . . . Jamming 2630 | . . . . . . . . . . . . . 104 2526 ECM 2219 | . . . . . . . . . . . . . . 2219 Robot Analysis Total 9 | . 5 . . . 2 . 1 . . . . 1 . . Derelict Logs Recovered 2 | . . 1 . 1 . . . . . . . . . . Drone Launches . | . . . . . . . . . . . . . . . Drone Recoveries . | . . . . . . . . . . . . . . . Exploration | -11 -10 -10 -10 -9 -8 -8 -8 -8 -6 -6 -6 -5 -4 -3 ------------- Run | Yrd Mat Min Exi Min Mat Sto Rec Scr Fac Was Fac Fac Fac Res Turns Passed 14716 | 94 986 941 487 385 886 1857 879 941 1675 324 63 1900 606 2692 Spaces Moved 10564 | 73 789 936 502 363 763 1287 667 882 1164 245 58 1048 317 1470 Core 7 | 7 . . . . . . . . . . . . . . Treads . | . . . . . . . . . . . . . . . Legs 42 | . . . . . . . . . . . . . 22 20 Wheels 10515 | 66 789 936 502 363 763 1287 667 882 1164 245 58 1048 295 1450 Hover . | . . . . . . . . . . . . . . . Flight . | . . . . . . . . . . . . . . . Fastest Speed 50 | 50 80 95 95 95 80 90 105 105 100 100 100 93 120 102 Average Speed 107 | 84 91 95 95 95 96 104 105 105 111 105 100 119 138 125 Slowest Speed 240 | 100 95 95 95 95 105 105 105 105 115 115 100 150 190 240 Overloaded Moves . | . . . . . . . . . . . . . . . Propulsion Burnouts . | . . . . . . . . . . . . . . . Robots Hopped . | . . . . . . . . . . . . . . . Potential Cave-ins . | . . . . . . . . . . . . . . . Cave-ins Triggered . | . . . . . . . . . . . . . . . Exploration Rate (%) 54 | 4 96 98 74 63 48 87 99 59 20 98 3 25 9 27 Regions Visited 14 Branch Regions 6 Pre-discovered Areas 11 | . . 1 1 1 . . 6 . 1 . . 1 . . Known Exits Taken 1 | . . . . . . 1 . . . . . . . . Unknown Exits Taken 11 | 1 1 1 1 1 1 . 1 1 . . 1 1 1 . Scrap Searched 3 | . . 1 . . . . . 2 . . . . . . Spaces Dug 184 | . 10 . . . 16 33 3 . 38 . . 22 6 56 Terrain Destroyed 254 | . 11 . . . 16 33 3 . 73 29 . 27 6 56 Melee 166 | . . . . . 16 33 3 . 30 . . 22 6 56 Projectile 28 | . 11 . . . . . . . 9 3 . 5 . . AOE 60 | . . . . . . . . . 34 26 . . . . Terrain Rammed . | . . . . . . . . . . . . . . . Walls Destroyed . | . . . . . . . . . . . . . . . Machines Disabled . | . . . . . . . . . . . . . . . Actions | -11 -10 -10 -10 -9 -8 -8 -8 -8 -6 -6 -6 -5 -4 -3 --------- Run | Yrd Mat Min Exi Min Mat Sto Rec Scr Fac Was Fac Fac Fac Res Total 12931 | 92 962 980 513 401 867 1651 820 896 1460 282 62 1515 413 2017 Wait 1239 | . 95 22 7 33 20 224 89 15 201 8 . 268 1 256 Move 10551 | 72 788 935 501 362 762 1286 666 881 1164 244 57 1047 316 1470 Hop . | . . . . . . . . . . . . . . . Pick Up 108 | 6 14 5 2 1 13 7 1 . 7 . 1 19 9 23 Fast Attach 84 | 6 . . . 1 4 5 2 . 3 3 1 18 15 26 Attach 45 | . 1 2 . . 3 1 . . 3 2 3 11 4 15 Detach 5 | . . . . . . . . . 1 . . 1 3 . Swap 88 | 1 12 3 . 1 10 13 7 . 7 4 . 10 3 17 Drop 145 | . 10 5 2 2 20 16 4 . 15 . . 18 10 43 Fire 245 | 7 42 8 . 1 5 54 12 . 19 21 . 51 20 5 Melee 373 | . . . . . 30 45 8 . 40 . . 72 32 146 Ram . | . . . . . . . . . . . . . . . Kick . | . . . . . . . . . . . . . . . Crush . | . . . . . . . . . . . . . . . Escape Stasis 16 | . . . . . . . . . . . . . . 16 Rewire 32 | . . . 1 . . . 31 . . . . . . . Trap . | . . . . . . . . . . . . . . . Miscellaneous . | . . . . . . . . . . . . . . . Route ------- -11/Scrapyard -10/Materials (discovered 6 exits: [*Mat x3] / [*Min x2] / [*Sub]) -10/Mines (discovered 4 exits: [*Mat x2] / *Exi / [*Sub]) -10/Exiles (discovered 2 exits: [*Min x2]) -9/Mines -8/Materials (discovered 3 exits: *Fac x2 / *Sto) -8/Storage (discovered 2 exits: *Fac / *Rec) -8/Recycling (discovered 2 exits: *Fac / *Scr) -8/Scraptown -6/Factory -6/Waste -6/Factory -5/Factory -4/Factory -3/Research History --------- Turn | Location | Event 23 | -11/Scrapyard | Discovered new exit (range 16) 95 | -11/Scrapyard | Entered Materials 178 | -10/Materials | Discovered new exit (range 13) 226 | -10/Materials | Discovered new exit (range 5) 300 | -10/Materials | Build established: Mutant 537 | -10/Materials | Discovered new exit (range 8) 607 | -10/Materials | Discovered new exit (range 9) 617 | -10/Materials | Discovered new exit (range 3) 903 | -10/Materials | Discovered new exit (range 9) 1081 | -10/Materials | Entered Mines 1088 | -10/Mines | Discovered new exit (range 3) 1114 | -10/Mines | Build established: Scavenger-Mutant 1122 | -10/Mines | Assembled infested the area 1147 | -10/Mines | Learned 2 Materials zone layouts 1252 | -10/Mines | Lost 3 parts (1p1n1u) 1305 | -10/Mines | Learned location of Storage (-8) 1414 | -10/Mines | Discovered new exit (range 9) 1466 | -10/Mines | Discovered new exit (range 5) 1626 | -10/Mines | Discovered new exit (range 8) 1864 | -10/Mines | Assisted by bots powering up and referring to "LRC-V3" 2022 | -10/Mines | Entered Exiles 2022 | -10/Exiles | Accompanied by 3 allies 2040 | -10/Exiles | Discovered new exit (range 15) 2080 | -10/Exiles | Met 8R-AWN 2105 | -10/Exiles | Met EX-HEX 2176 | -10/Exiles | Met EX-DEC 2206 | -10/Exiles | Learned location of Zion (-6) 2237 | -10/Exiles | Met EX-BIN 2326 | -10/Exiles | Aligned with FarCom system 2327 | -10/Exiles | Given EX-Vault access code 2348 | -10/Exiles | Opened EX-Vault 2380 | -10/Exiles | Found Gui. Plasma Cannon 2411 | -10/Exiles | Warned to stay clear of 0b10 Research branches 2487 | -10/Exiles | Discovered new exit (range 14) 2509 | -10/Exiles | Left Exiles lab with Gui. Plasma Cannon 2509 | -10/Exiles | Entered Mines 2509 | -9/Mines | Accompanied by 3 allies 2513 | -9/Mines | Received a Mining Laser from a helpful Derelict 2881 | -9/Mines | Discovered new exit (range 5) 2886 | -9/Mines | Received a Rocket Launcher from a helpful Derelict 2894 | -9/Mines | Entered Materials 2894 | -8/Materials | Accompanied by 3 allies 2894 | -8/Materials | Evolved 4 slots: Propulsion x1, Utility x2, Weapon x1 2895 | -8/Materials | Identified exit to Factory 3405 | -8/Materials | Discovered exit to Factory (range 20) 3676 | -8/Materials | Discovered new exit (range 17) 3780 | -8/Materials | Entered Storage 3799 | -8/Storage | Identified exit to Recycling 3903 | -8/Storage | Build established: Mutant 5121 | -8/Storage | Discovered exit to Factory (range 19) 5633 | -8/Storage | Used back door to open Recycling access 5637 | -8/Storage | Entered Recycling 5839 | -8/Recycling | Build established: Tank 6099 | -8/Recycling | Discovered new exit (range 9) 6418 | -8/Recycling | Scanned before Scraplab entrance 6436 | -8/Recycling | Build established: Commander-Tank 6465 | -8/Recycling | Entered Scraplab 6477 | -8/Recycling | Discovered new exit (range 2) 6516 | -8/Recycling | Entered Scraptown 6516 | -8/Scraptown | Accompanied by 7 allies 6516 | -8/Scraptown | System corruption cleaned by C-Scrubber 6701 | -8/Scraptown | Visited Assassins FH 6751 | -8/Scraptown | Visited Shadow of the Wyrm 6784 | -8/Scraptown | Visited Comm Corps 6846 | -8/Scraptown | Visited Supply Room 6878 | -8/Scraptown | Visited Cyclists 6912 | -8/Scraptown | Visited The Evicted 7190 | -8/Scraptown | Heard Great Nut preacher, LISTEN AND RECITE! 7191 | -8/Scraptown | Discovered new exit (range 11) 7457 | -8/Scraptown | Entered Factory 7457 | -6/Factory | Accompanied by 7 allies 7457 | -6/Factory | Evolved 4 slots: Power x1, Propulsion x1, Utility x1, Weapon x1 7682 | -6/Factory | Lost 4 allies 7750 | -6/Factory | Murdered 3 allies 7967 | -6/Factory | Build established: Tank 9029 | -6/Factory | Spotted B-75 Beast 9132 | -6/Factory | Sucked down chute 9132 | -6/Factory | Entered Waste 9147 | -6/Waste | EMP discharged 9201 | -6/Waste | Spotted C-40 Crusher 9205 | -6/Waste | Spotted C-40 Crusher 9247 | -6/Waste | EMP discharged 9250 | -6/Waste | Crushed by Compactor (0 parts destroyed, 2 dropped) 9253 | -6/Waste | Crushed by Compactor (1 part destroyed, 1 dropped) 9258 | -6/Waste | Destroyed C-40 Crusher 9286 | -6/Waste | Spotted C-40 Crusher 9286 | -6/Waste | Spotted C-40 Crusher 9317 | -6/Waste | Crushed by Compactor (1 part destroyed, 2 dropped) 9319 | -6/Waste | Spotted C-40 Crusher 9322 | -6/Waste | Crushed by Compactor (1 part destroyed, 1 dropped) 9347 | -6/Waste | EMP discharged 9347 | -6/Waste | System corruption reached 10% 9364 | -6/Waste | Spotted C-40 Crusher 9444 | -6/Waste | Discovered new exit (range 13) 9447 | -6/Waste | EMP discharged 9456 | -6/Waste | Entered Factory 9499 | -6/Factory | Discovered new exit (range 15) 9519 | -6/Factory | Entered another Factory area 9519 | -5/Factory | Evolved 2 slots: Propulsion x1, Utility x1 9570 | -5/Factory | Build established: Mutant 10584 | -5/Factory | Lost 3 parts (2p1n) 10617 | -5/Factory | Destroyed 9 combat bots 10677 | -5/Factory | Lost 4 parts (2n2w) 11222 | -5/Factory | Build established: Scavenger-Mutant 11233 | -5/Factory | Discovered new exit (range 19) 11419 | -5/Factory | Entered another Factory area 11419 | -4/Factory | Evolved 2 slots: Utility x1, Weapon x1 11708 | -4/Factory | Destroyed 8 combat bots 11772 | -4/Factory | Lost 10 parts (2p4n2u2w) 11939 | -4/Factory | Discovered new exit (range 11) 12025 | -4/Factory | Entered Research 12025 | -3/Research | Evolved 2 slots: Propulsion x1, Utility x1 12217 | -3/Research | Build established: Scavenger-Gunner 12517 | -3/Research | Build established: Infiltrator-Gunner 12958 | -3/Research | Build established: Scavenger-Gunner 13602 | -3/Research | System corruption reached 10% 13862 | -3/Research | Build established: Scavenger-Mutant 14662 | -3/Research | Destroyed 10 combat bots 14664 | -3/Research | Lost 15 parts (3p6n4u2w) 14717 | -3/Research | Self-destructed Last Messages --------------- 14641_ H-77 Assassin destroyed. 14657_ Acquired Wheel. 14662_ VYK AYQ=TDBDGKKZHZQH84FM>ISRS 14664_ Acquired 30 matter. 14672_ Acquired Lgt. Quantum Reactor. 14691_ System corrupted: Energy discharge (-228). 14691_ Acquired 6 matter. 14701_ Adv. Cooling System destroyed. 14702_ Slug penetrates Wall. 14702_ Exp. Cooling System destroyed. 14704_ Scanalyzer disabled. 14708_ QXLSFIDPK7FD7UZZ/E2SVOJT8Y/D|/>T SRZ F= 14709_ S-43 Plague destroyed. 14712_ Enh. Force Lance follow-up attack on G-67 Veteran. 14712_ G-67 Veteran suffers critical hit (Impale). 14712_ HERF Cannon destroyed. 14714_ Wheel destroyed. 14715_ Adv. Recalibrator destroyed. 14715_ Wheel destroyed. Map ----- +----------------------------------------------------+ | ?????????????????????????######## ######+##??? | | ???????????????????????????###??# ## = #??? | | ????????????????????????????????# ## #??? | | ????????????????????????????????#+## ##] #??? | | ???????????????????????????????????# ## #??? | | ???????????????????????????????????? ## #??? | | ???????????????????????????????????# ## #?## | | ???????????????????????????????????# #####+#####" | | ???????????????????????????????????+ | | ?????????????????????????????????? # ###### | | ???????????????????????##########+## #????? | | ???????????????????????# !+% #??### | | ???????????????????????# =!|# ^ ####/###### | | ???????????????????????# [=%# # / | | ???????????????????????# !=*%# # | # | | ???????????????????????# % !%%%# # # | | ???????????????????????# !=!!#!! # """ # | | ???????????????????????# [[%%+[%= + """ # | | ???????????????????????# ! =# | # """ # | | ???????????????????????# ! %# k# # | | ????????????????################# # # | | ????????????????# # ########### | | ????????????????# # #?????????? | | ????????????????# "" =#% u #?????????? | | ????????????????# "" %g=k !!! #?????????? | | ????????????????# S @;g % !!! #?????????? | | ????????????????# % # !! k ##?????????? | | ????????????????# ; k #??????????? | | ????????????????# sss; = #??????????? | | ????????????????# ; ?????????? | | ????????????????########## ###????????? | | ?????????????????????????# #######??????????? | | ?????????????????????????# #????????????????? | | ?????????????????????????# #????????????????? | | ?????????????????????????# #????????????????? | | ?????????????????????????# g#????????????????? | | ?????????????????????????# #????????????????? | | ?????????????????????????# #????????????????? | | ?????????????????????????+ /????????????????? | | ?????????????????????????? ?????????????????? | | ?????????????????????????????BB?????????????????? | | ?????????????????????????????BB?????????????????? | | ????????????????????????????????????????????????? | | ????????????????????????????????????????????????? | | ????????????????????????????????????????????????? | | ????????????????????????????????????????????????? | | ????????????????????????????????????????????????? | | ????????????????????????????????????????????????? | | ????????????????????????????????????????????????? | | ????????????????????????????????????????????????? | +----------------------------------------------------+ Best States ------------- Heat Dissipation 115 Energy Generation 43 Energy Capacity 1180 Matter Stores 417 Matter Capacity 500 Sight Range 20 Robot Scan Range 15 Terrain Scan Range 16 Terrain Scan Density 10 ECM Strength 1 Jamming Range 12 Armor Coverage 825 Resistance: KI 20 Resistance: TH 20 Resistance: EX 70 Resistance: EM 45 Resistance: I 20 Resistance: S 20 Resistance: P 20 Point Defense Rating 240 Weapon Cycling 20 Evasion (%) 45 Targeting Accuracy 16 Target Analysis 12 Recoil Reduction 1 Salvage Targeting 2 Offensive Hacking 10 Item Schematics ----------------- None Robot Schematics ------------------ None Fabricated ------------ Nothing Repaired ---------- Nothing Alien Tech Used ----------------- None Achievements -------------- Ambidextrous \\IAMDERELICT Challenges ------------ None Game ------ Seed AlertStealthFacilitator Manual? 0 Play Time 02:48:38 Cumulative 65.2 hours Start 2025.05.30 @ 19:40:21 End 2025.07.03 @ 21:08:49 Sessions 13 Manual Loads 0 Difficulty Adventurer Special Mode None Game No. 69 Rogue 59 Adventurer 7 Explorer 3 Win Type - Total 0 Types 0/0/0/0/0/0/0/0/0/0 Lore% 40 Gallery% 39 Achievement% 29 Wizard Run 0 Options --------- Layout 2 ASCII 0 Keyboard 1 Movement Arrows Keybinds 0 Fullscreen 1 Font 20/SmallcapsGlow Map View 56x54 Zoom Use 0% Tactical HUD 1 Map Filters NONE Filters NONE Steam X RUN: 10fa56bf-5135-4364-97ee-77cf9fc7b290